fUST/lending_fUST_20251012
["ID","MTS","AMOUNT","RATE_DAILY","PERIOD"]
[390975871,1760255434127,-500.0,0.00024142,2]
[390975872,1760255434138,-500.0,0.00024142,2]
[390975873,1760255434148,-241.94,0.00024142,2]
[390975874,1760255434158,-500.0,0.00024142,2]
[390975875,1760255434167,-501.81410703,0.00024142,2]
[390975876,1760255434177,-500.0,0.00024142,2]
[390975877,1760255434187,-405.13,0.00024142,2]
[390975878,1760255434196,-502.054766,0.00024142,2]
[390975879,1760255434205,-500.0,0.00024142,2]
[390975880,1760255434215,-500.0,0.00024142,2]
[390975881,1760255434224,-500.0,0.00024142,2]
[390975882,1760255434242,-157.15,0.00024142,2]
[390975883,1760255434253,-500.0,0.00024142,2]
[390975884,1760255434265,-500.0,0.00024142,2]
[390975885,1760255434274,-500.0,0.00024142,2]
[390975886,1760255434284,-500.0,0.00024142,2]
[390975887,1760255434294,-193.78,0.00024142,2]
[390975888,1760255434304,-500.0,0.00024142,2]
[390975889,1760255434314,-500.0,0.00024142,2]
[390975890,1760255434324,-510.63450437,0.00024142,2]
[390975891,1760255434334,-500.0,0.00024142,2]
[390975892,1760255434344,-500.0,0.00024142,2]
[390975893,1760255434353,-500.0,0.00024142,2]
[390975894,1760255434363,-500.0,0.00024142,2]
[390975895,1760255434373,-500.0,0.00024142,2]
[390975896,1760255434382,-500.0,0.00024142,2]
[390975897,1760255434391,-500.0,0.00024142,2]
[390975898,1760255434401,-500.0,0.00024142,2]
[390975899,1760255434410,-500.0,0.00024142,2]
[390975900,1760255434423,-500.0,0.00024142,2]
[390975901,1760255434433,-500.0,0.00024142,2]
[390975902,1760255434443,-500.0,0.00024142,2]
[390975903,1760255434453,-500.0,0.00024142,2]
[390975904,1760255434464,-584.56,0.00024142,2]
[390975905,1760255434474,-500.87353756,0.00024142,2]
[390975906,1760255434483,-500.0,0.00024142,2]
[390975907,1760255434493,-172.68877268,0.00024142,2]
[390975908,1760255434505,-500.0,0.00024142,2]
[390975909,1760255434516,-500.0,0.00024142,2]
[390975910,1760255434526,-500.0,0.00024142,2]
[390975911,1760255434536,-500.0,0.00024142,2]
[390975912,1760255434546,-500.0,0.00024142,2]
[390975913,1760255434555,-500.0,0.00024142,2]
[390975914,1760255434565,-500.0,0.00024142,2]
[390975915,1760255434575,-500.0,0.00024142,2]
[390975916,1760255434584,-500.54182772,0.00024142,2]
[390975917,1760255434594,-500.0,0.00024142,2]
[390975918,1760255434604,-501.05543227,0.00024142,2]
[390975919,1760255434613,-501.85461505,0.00024142,2]
[390975920,1760255434622,-500.0,0.00024142,2]
[390975921,1760255434632,-500.0,0.00024142,2]
[390975922,1760255434641,-478.01392348,0.00024142,2]
[390975923,1760255434650,-500.0,0.00024142,2]
[390975924,1760255434660,-500.0,0.00024142,2]
[390975925,1760255434669,-500.0,0.00024142,2]
[390975926,1760255434678,-244.29,0.00024142,2]
[390975927,1760255434688,-500.0,0.00024142,2]
[390975928,1760255434700,-185.51585376,0.00024142,2]
[390975929,1760255434709,-500.0,0.00024142,2]
[390975930,1760255434719,-501.42469803,0.00024142,2]
[390975931,1760255434728,-502.31385421,0.00024142,2]
[390975932,1760255434738,-500.0,0.00024142,2]
[390975933,1760255434748,-500.0,0.00024142,2]
[390975934,1760255434759,-501.59771383,0.00024142,2]
[390975935,1760255434768,-501.18658578,0.00024142,2]
[390975936,1760255434778,-500.0,0.00024142,2]
[390975937,1760255434788,-500.0,0.00024142,2]
[390975938,1760255434798,-500.0,0.00024142,2]
[390975939,1760255434807,-242.6,0.00024142,2]
[390975940,1760255434817,-500.0,0.00024142,2]
[390975941,1760255434827,-500.0,0.00024142,2]
[390975942,1760255434837,-500.0,0.00024142,2]
[390975943,1760255434846,-575.27,0.00024142,2]
[390975944,1760255434855,-500.0,0.00024142,2]
[390975945,1760255434864,-500.0,0.00024142,2]
[390975946,1760255434874,-500.0,0.00024142,2]
[390975947,1760255434883,-500.0,0.00024142,2]
[390975948,1760255434893,-282.42,0.00024142,2]
[390975949,1760255434903,-500.0,0.00024142,2]
[390975950,1760255434913,-500.0,0.00024142,2]
[390975951,1760255434924,-500.0,0.00024142,2]
[390975952,1760255434933,-500.0,0.00024142,2]
[390975953,1760255434943,-500.0,0.00024142,2]
[390975954,1760255434955,-500.0,0.00024142,2]
[390975955,1760255434964,-500.0,0.00024142,2]
[390975956,1760255434973,-500.0,0.00024142,2]
[390975957,1760255434982,-316.8,0.00024142,2]
[390975958,1760255434992,-500.0,0.00024142,2]
[390975959,1760255435001,-500.0,0.00024142,2]
[390975960,1760255435012,-500.0,0.00024142,2]
[390975961,1760255435021,-500.0,0.00024142,2]
[390975962,1760255435031,-500.0,0.00024142,2]
[390975963,1760255435040,-626.15825857,0.00024142,2]
[390975964,1760255435051,-500.0,0.00024142,2]
[390975965,1760255435060,-500.0,0.00024142,2]
[390975966,1760255435070,-500.0,0.00024142,2]
[390975967,1760255435080,-504.66148069,0.00024142,2]
[390975968,1760255435089,-501.11226324,0.00024142,2]
[390975969,1760255435100,-500.0,0.00024142,2]
[390975970,1760255435109,-501.57742464,0.00024142,2]
[390975971,1760255435118,-500.0,0.00024142,2]
[390975972,1760255435128,-502.46258052,0.00024142,2]
[390975973,1760255435138,-500.0,0.00024142,2]
[390975974,1760255435150,-500.0,0.00024142,2]
[390975975,1760255435160,-500.0,0.00024142,2]
[390975976,1760255435170,-501.234996,0.00024142,2]
[390975977,1760255435180,-501.90666336,0.00024142,2]
[390975978,1760255435189,-500.0,0.00024142,2]
[390975979,1760255435199,-501.6922372,0.00024142,2]
[390975980,1760255435209,-500.0,0.00024142,2]
[390975981,1760255435219,-501.33500551,0.00024142,2]
[390975982,1760255435228,-520.0,0.00024142,3]
[390975983,1760255435238,-500.0,0.00024142,2]
[390975984,1760255435248,-500.0,0.00024142,2]
[390975985,1760255435258,-500.0,0.00024142,2]
[390975986,1760255435269,-500.0,0.00024142,2]
[390975987,1760255435279,-1569.21,0.00024142,2]
[390975988,1760255435289,-921.7741743,0.00024191,2]
[390975989,1760255435299,-24617.62650371,0.00024191,2]
[390975990,1760255435324,-3740.18570329,0.00024191,2]
[390975991,1760255435334,-1569.21,0.00024299,2]
[390975992,1760255435344,-1569.21,0.00024299,2]
[390975993,1760255435355,-1709.73613376,0.000243,30]
[390975994,1760255435365,-2000.0,0.000243,30]
[390975995,1760255435375,-2000.0,0.000243,30]
[390975996,1760255435385,-2000.0,0.000243,30]
[390975997,1760255435395,-2000.0,0.000243,30]
[390975998,1760255435405,-2000.0,0.000243,30]
[390975999,1760255435415,-2000.0,0.000243,30]
[390976000,1760255435432,-1000.331,0.000243,30]
[390976001,1760255435441,-1567.9519887,0.000243,30]
[390976002,1760255435451,-151.0,0.000243,30]
[390976003,1760255435462,-152.68237417,0.000243,30]
[390976004,1760255435472,-500.0,0.000243,30]
[390976005,1760255435482,-199.63242529,0.000243,14]
[390976006,1760255435491,-500.0,0.00024353,2]
[390976007,1760255435504,-4272.0,0.00024354,2]
[390976008,1760255435514,-198.54520826,0.00024355,30]
[390976009,1760255435523,-500.0,0.00024355,30]
[390976010,1760255435532,-548.8195256,0.000244,2]
[390976011,1760255435541,-500.0,0.0002441,30]
[390976012,1760255435550,-500.0,0.00024449,2]
[390976013,1760255435560,-500.0,0.00024449,2]
[390976014,1760255435569,-1569.21,0.00024449,2]
[390976015,1760255435579,-19434.0573731,0.0002445,2]
[390976016,1760255435589,-1569.21,0.00024453,2]
[390976017,1760255435598,-5888.0,0.00024454,2]
[390976018,1760255435608,-500.0,0.00024464,30]
[390976019,1760255435617,-500.0,0.00024473,2]
[390976020,1760255435627,-500.0,0.00024473,2]
[390976021,1760255435636,-503.78777992,0.00024473,2]
[390976022,1760255435645,-500.0,0.00024473,2]
[390976023,1760255435655,-500.86341301,0.00024473,2]
[390976024,1760255435664,-500.0,0.00024473,2]
[390976025,1760255435673,-500.0,0.00024473,2]
[390976026,1760255435683,-256.29339795,0.00024485,2]
[390976027,1760255435692,-500.0,0.00024499,2]
[390976028,1760255435701,-500.0,0.00024499,2]
[390976029,1760255435710,-500.0,0.00024499,2]
[390976030,1760255435719,-500.0,0.00024499,2]
[390976031,1760255435729,-500.0,0.00024499,2]
[390976032,1760255435738,-500.0,0.00024499,2]
[390976033,1760255435747,-500.0,0.00024499,2]
[390976034,1760255435756,-500.0,0.00024499,2]
[390976035,1760255435765,-500.0,0.00024499,2]
[390976036,1760255435775,-500.0,0.00024499,2]
[390976037,1760255435784,-500.0,0.00024499,2]
[390976038,1760255435793,-500.0,0.00024499,2]
[390976039,1760255435807,-500.0,0.00024499,2]
[390976040,1760255435829,-500.0,0.00024499,2]
[390976041,1760255435838,-500.0,0.00024499,2]
[390976042,1760255435847,-171.51905814,0.00024499,2]
[390976043,1760255435856,-1000.0,0.00024499,2]
[390976044,1760255435865,-1569.21,0.00024499,2]
[390976045,1760255435875,-1569.21,0.00024499,2]
[390976046,1760255435884,-1569.21,0.00024499,2]
[390976047,1760255435893,-1569.21,0.00024499,2]
[390976048,1760255435903,-1569.21,0.00024499,2]
[390976049,1760255435912,-1569.21,0.00024499,2]
[390976050,1760255435921,-1569.21,0.00024499,2]
[390976051,1760255435930,-1569.21,0.00024499,2]
[390976052,1760255435940,-10596.65740181,0.000245,2]
[390976077,1760255439385,-497.9209189,0.0002414,2]
[390976078,1760255439395,-500.0,0.00024141,2]
[390976079,1760255439404,-500.0,0.00024141,2]
[390976080,1760255439413,-501.58376597,0.00024141,2]
[390976081,1760255439427,-1569.21,0.00024499,2]
[390976082,1760255439436,-1569.21,0.00024499,2]
[390976083,1760255439446,-1569.21,0.00024499,2]
[390976084,1760255439455,-1569.21,0.00024499,2]
[390976085,1760255439465,-1569.21,0.00024499,2]
[390976087,1760255439474,-1569.21,0.00024499,2]
[390976088,1760255439484,-1569.21,0.00024499,2]
[390976089,1760255439495,-176.35653461,0.00024499,2]
[390976090,1760255440487,-500.20965639,0.0002414,2]
[390976091,1760255440497,-500.0,0.00024141,2]
[390976092,1760255440506,-1392.85346539,0.00024499,2]
[390976093,1760255440516,-1569.34191786,0.00024499,2]
[390976094,1760255440525,-116679.46185885,0.000245,2]
[390976145,1760255443046,-365.83,0.00024141,2]
[390976146,1760255443056,-503.78061654,0.00024141,2]
[390976147,1760255443065,-319.29,0.0002449,10]
[390976148,1760255443075,-147935.43165704,0.000245,2]
[390976184,1760255446111,-500.24573843,0.0002414,2]
[390976185,1760255446120,-500.0,0.00024141,2]
[390976187,1760255446130,-506.03,0.00024141,2]
[390976189,1760255446139,-500.0,0.00024142,2]
[390976190,1760255446148,-1924.05169054,0.000245,2]
[390976213,1760255534993,574.455985,0.00013699,2]
[390976214,1760255535224,574.455985,0.00020187,2]
[390976215,1760255563587,6622.24,0.00021788,2]
[390976240,1760256357125,-500.0,0.00022886,2]
[390976241,1760256357146,-170.55554652,0.00022886,2]
[390976242,1760256357165,-501.66171873,0.000229,2]
[390976243,1760256357184,-666.0,0.00023001,2]
[390976244,1760256357204,-160.166806,0.00023384,3]
[390976245,1760256357224,-196.13887849,0.00023486,2]
[390976246,1760256357245,-958.0,0.00023739,2]
[390976247,1760256357266,-124.51671226,0.00023752,2]
[390976250,1760256430078,-500.0,0.00022886,2]
[390976251,1760256430099,-833.48328774,0.00023752,2]
[390976252,1760256430122,-3606.0,0.00023762,2]
[390976253,1760256430143,-958.0,0.00023787,2]
[390976254,1760256430162,-160.166806,0.00023814,3]
[390976255,1760256430181,-587.02800147,0.00023877,2]
[390976256,1760256430200,-339.0,0.00023878,2]
[390976257,1760256430220,-958.0,0.0002391,2]
[390976258,1760256430238,-250.61241718,0.00023995,2]
[390976259,1760256430257,-482.27098122,0.00023998,2]
[390976260,1760256430278,-500.0,0.00023998,2]
[390976261,1760256430297,-501.39167991,0.00023998,2]
[390976262,1760256430316,-500.0,0.00023998,2]
[390976263,1760256430335,-500.0,0.00023999,2]
[390976264,1760256430367,-500.0,0.00023999,2]
[390976265,1760256430389,-500.0,0.00023999,2]
[390976266,1760256430411,-500.0,0.00023999,2]
[390976267,1760256430431,-500.0,0.00023999,2]
[390976268,1760256430450,-500.0,0.00023999,2]
[390976269,1760256430469,-500.0,0.00023999,2]
[390976270,1760256430488,-636.4719286,0.00023999,2]
[390976271,1760256430509,-500.0,0.00023999,2]
[390976272,1760256430528,-500.0,0.00023999,2]
[390976273,1760256430547,-502.45846065,0.00023999,2]
[390976274,1760256430566,-503.05416711,0.00023999,2]
[390976275,1760256430587,-500.0,0.00023999,2]
[390976276,1760256430608,-500.0,0.00023999,2]
[390976277,1760256430630,-505.14886751,0.00023999,2]
[390976278,1760256430650,-500.0,0.00023999,2]
[390976279,1760256430669,-500.0,0.00023999,2]
[390976280,1760256430688,-500.0,0.00023999,2]
[390976281,1760256430707,-500.0,0.00023999,2]
[390976282,1760256430725,-500.0,0.00023999,2]
[390976283,1760256430746,-500.0,0.00023999,2]
[390976284,1760256430771,-504.17224327,0.00023999,2]
[390976285,1760256430790,-500.76029854,0.00023999,2]
[390976286,1760256430808,-500.0,0.00023999,2]
[390976287,1760256430828,-500.0,0.00023999,2]
[390976288,1760256430854,-500.0,0.00023999,2]
[390976289,1760256430876,-500.0,0.00023999,2]
[390976290,1760256430896,-500.80769288,0.00023999,2]
[390976291,1760256430918,-500.0,0.00023999,2]
[390976292,1760256430939,-500.0,0.00023999,2]
[390976293,1760256430961,-500.52230088,0.00023999,2]
[390976294,1760256430981,-500.99175476,0.00023999,2]
[390976295,1760256431000,-500.0,0.00023999,2]
[390976296,1760256431018,-500.0,0.00023999,2]
[390976297,1760256431036,-500.90624379,0.00023999,2]
[390976298,1760256431055,-500.0,0.00023999,2]
[390976299,1760256431073,-500.0,0.00023999,2]
[390976300,1760256431092,-500.0,0.00023999,2]
[390976301,1760256431111,-500.0,0.00023999,2]
[390976302,1760256431131,-500.0,0.00023999,2]
[390976303,1760256431150,-500.0,0.00023999,2]
[390976304,1760256431168,-500.0,0.00023999,2]
[390976305,1760256431186,-500.0,0.00023999,2]
[390976306,1760256431204,-500.0,0.00023999,2]
[390976307,1760256431223,-421.83406148,0.00023999,2]
[390976308,1760256431242,-500.0,0.00023999,2]
[390976309,1760256431261,-628.20353952,0.00023999,2]
[390976310,1760256431281,-500.0,0.00023999,2]
[390976311,1760256431300,-500.0,0.00023999,2]
[390976312,1760256431319,-500.0,0.00023999,2]
[390976313,1760256431341,-500.0,0.00023999,2]
[390976314,1760256431362,-24511.8,0.00024,2]
[390976315,1760256431382,-500.0,0.00024041,2]
[390976316,1760256431404,-485.10795416,0.00024041,2]
[390976317,1760256431426,-500.0,0.00024041,2]
[390976318,1760256431448,-469.99833617,0.00024041,2]
[390976319,1760256431468,-7468.18031748,0.00024042,3]
[390976320,1760256448071,-1000.0,0.00023091,2]
[390976321,1760256448090,-500.0,0.00023998,2]
[390976322,1760256448109,-6835.7622783,0.00024042,3]
[390976328,1760256629004,10000.0,0.00027397,120]
[390976334,1760256632046,-500.0,0.00022886,2]
[390976335,1760256632056,-426.1958087,0.00023765,2]
[390976336,1760256632067,-14.07519241,0.00023765,2]
[390976337,1760256632075,-500.0,0.00023999,2]
[390976338,1760256632084,-165.37726375,0.00023999,2]
[390976339,1760256632095,-837.77029013,0.00023999,2]
[390976340,1760256632103,-3787.21273787,0.00024042,3]
[390976420,1760256640230,-10566.72160199,0.00024042,3]
[390976421,1760256640240,-1567.9519887,0.00024042,3]
[390976422,1760256640250,-221.72221047,0.00024086,2]
[390976423,1760256640260,-339.0,0.00024106,2]
[390976424,1760256640269,-809.11,0.00024131,10]
[390976425,1760256640279,-505.98420004,0.0002414,2]
[390976426,1760256640292,-501.37689218,0.0002414,2]
[390976427,1760256640302,-500.0,0.0002414,2]
[390976428,1760256640311,-500.0,0.0002414,2]
[390976429,1760256640320,-500.0,0.0002414,2]
[390976430,1760256640332,-500.0,0.0002414,2]
[390976431,1760256640342,-501.76160349,0.0002414,2]
[390976432,1760256640351,-500.0,0.0002414,2]
[390976433,1760256640361,-501.75300673,0.0002414,2]
[390976434,1760256640370,-500.0,0.0002414,2]
[390976435,1760256640380,-500.0,0.0002414,2]
[390976436,1760256640391,-500.0,0.0002414,2]
[390976437,1760256640400,-500.0,0.0002414,2]
[390976438,1760256640410,-500.0,0.0002414,2]
[390976439,1760256640420,-500.0,0.0002414,2]
[390976440,1760256640429,-500.0,0.0002414,2]
[390976441,1760256640439,-369.86162768,0.0002414,2]
[390976442,1760256640449,-500.0,0.0002414,2]
[390976443,1760256640458,-539.96743992,0.0002414,2]
[390976444,1760256640468,-500.0,0.0002414,2]
[390976445,1760256640478,-500.0,0.0002414,2]
[390976446,1760256640487,-500.0,0.0002414,2]
[390976447,1760256640496,-500.0,0.0002414,2]
[390976448,1760256640506,-500.0,0.0002414,2]
[390976449,1760256640515,-500.0,0.0002414,2]
[390976450,1760256640662,-500.0,0.0002414,2]
[390976451,1760256640672,-290.21,0.0002414,2]
[390976452,1760256640682,-500.0,0.0002414,2]
[390976453,1760256640692,-226.13000001,0.0002414,2]
[390976454,1760256640702,-500.0,0.0002414,2]
[390976455,1760256640712,-360.74,0.0002414,2]
[390976456,1760256640721,-500.0,0.0002414,2]
[390976457,1760256640731,-500.0,0.0002414,2]
[390976458,1760256640740,-500.0,0.0002414,2]
[390976459,1760256640749,-163.03,0.0002414,2]
[390976460,1760256640758,-500.0,0.0002414,2]
[390976461,1760256640768,-500.0,0.0002414,2]
[390976462,1760256640777,-500.0,0.0002414,2]
[390976463,1760256640790,-500.0,0.0002414,2]
[390976464,1760256640801,-318.44,0.0002414,2]
[390976465,1760256640811,-500.0,0.0002414,2]
[390976466,1760256640820,-500.0,0.0002414,2]
[390976467,1760256640829,-500.0,0.0002414,2]
[390976468,1760256640839,-500.0,0.0002414,2]
[390976469,1760256640849,-500.0,0.0002414,2]
[390976470,1760256640859,-500.0,0.0002414,2]
[390976471,1760256640867,-501.10395963,0.0002414,2]
[390976472,1760256640876,-500.0,0.0002414,2]
[390976473,1760256640886,-567.95,0.0002414,2]
[390976474,1760256640895,-500.0,0.0002414,2]
[390976475,1760256640905,-500.0,0.0002414,2]
[390976476,1760256640918,-500.0,0.0002414,2]
[390976477,1760256640927,-500.0,0.0002414,2]
[390976478,1760256640937,-500.0,0.0002414,2]
[390976479,1760256640946,-500.0,0.0002414,2]
[390976480,1760256640955,-500.0,0.0002414,2]
[390976481,1760256640966,-500.0,0.0002414,2]
[390976482,1760256640975,-370.96,0.0002414,2]
[390976483,1760256640985,-500.0,0.0002414,2]
[390976484,1760256640996,-500.0,0.0002414,2]
[390976485,1760256641005,-500.0,0.0002414,2]
[390976486,1760256641014,-502.43939918,0.0002414,2]
[390976487,1760256641024,-500.0,0.0002414,2]
[390976488,1760256641033,-501.89258517,0.0002414,2]
[390976489,1760256641044,-500.0,0.0002414,2]
[390976490,1760256641053,-500.0,0.0002414,2]
[390976491,1760256641063,-500.0,0.0002414,2]
[390976492,1760256641073,-501.41582738,0.0002414,2]
[390976493,1760256641082,-500.0,0.0002414,2]
[390976494,1760256641092,-502.08631585,0.0002414,2]
[390976495,1760256641101,-500.0,0.0002414,2]
[390976496,1760256641110,-500.0,0.0002414,2]
[390976497,1760256641120,-500.0,0.0002414,2]
[390976498,1760256641128,-500.0,0.0002414,2]
[390976499,1760256641137,-500.0,0.0002414,2]
[390976500,1760256641146,-500.0,0.0002414,2]
[390976501,1760256641155,-166.67,0.0002414,2]
[390976502,1760256641164,-500.0,0.0002414,2]
[390976503,1760256641174,-500.0,0.0002414,2]
[390976504,1760256641183,-500.0,0.0002414,2]
[390976505,1760256641192,-500.0,0.0002414,2]
[390976506,1760256641201,-500.0,0.0002414,2]
[390976507,1760256641210,-499.0,0.0002414,2]
[390976508,1760256641219,-500.0,0.0002414,2]
[390976509,1760256641227,-500.0,0.0002414,2]
[390976510,1760256641237,-500.0,0.0002414,2]
[390976511,1760256641246,-500.0,0.0002414,2]
[390976512,1760256641255,-500.0,0.00024141,2]
[390976513,1760256641266,-500.0,0.00024141,2]
[390976514,1760256641275,-485.03,0.00024141,2]
[390976515,1760256641286,-500.0,0.00024141,2]
[390976516,1760256641295,-500.0,0.00024141,2]
[390976517,1760256641304,-500.0,0.00024141,2]
[390976518,1760256641313,-500.0,0.00024141,2]
[390976519,1760256641323,-500.0,0.00024141,2]
[390976520,1760256641331,-500.0,0.00024141,2]
[390976521,1760256641340,-500.0,0.00024141,2]
[390976522,1760256641349,-500.0,0.00024141,2]
[390976523,1760256641358,-500.0,0.00024141,2]
[390976524,1760256641367,-500.0,0.00024141,2]
[390976525,1760256641376,-500.0,0.00024141,2]
[390976526,1760256641385,-500.0,0.00024141,2]
[390976527,1760256641394,-500.0,0.00024141,2]
[390976528,1760256641403,-314.33446856,0.00024141,2]
[390976529,1760256641416,-185.66553144,0.00024141,2]
[390976530,1760256641425,-500.0,0.00024141,2]
[390976531,1760256641434,-500.0,0.00024141,2]
[390976532,1760256641443,-504.34062908,0.00024141,2]
[390976533,1760256641452,-500.0,0.00024141,2]
[390976534,1760256641461,-500.0,0.00024141,2]
[390976535,1760256641470,-500.0,0.00024141,2]
[390976536,1760256641480,-500.0,0.00024141,2]
[390976537,1760256641489,-500.0,0.00024141,2]
[390976538,1760256641498,-500.0,0.00024141,2]
[390976539,1760256641507,-288.07,0.00024141,2]
[390976540,1760256641516,-500.0,0.00024141,2]
[390976541,1760256641526,-500.0,0.00024141,2]
[390976542,1760256641536,-305.47,0.00024141,2]
[390976543,1760256641546,-500.0,0.00024141,2]
[390976544,1760256641555,-480.5447718,0.00024141,2]
[390976562,1760256646153,-8060.66,0.00024,2]
[390976563,1760256646162,-500.0,0.0002414,2]
[390976564,1760256646172,-368.10349534,0.0002414,2]
[390976565,1760256646181,-500.0,0.0002414,2]
[390976566,1760256646191,-173.55987498,0.0002414,2]
[390976567,1760256646200,-19.4552282,0.00024141,2]
[390976568,1760256646209,-500.0,0.00024141,2]
[390976569,1760256646218,-500.0,0.00024141,2]
[390976570,1760256646227,-468.88,0.00024141,2]
[390976571,1760256646236,-500.0,0.00024141,2]
[390976572,1760256646246,-500.0,0.00024141,2]
[390976573,1760256646255,-500.0,0.00024141,2]
[390976574,1760256646264,-500.0,0.00024141,2]
[390976575,1760256646274,-640.27,0.00024141,2]
[390976576,1760256646283,-500.70499256,0.00024141,2]
[390976577,1760256646292,-500.0,0.00024141,2]
[390976578,1760256646302,-500.0,0.00024141,2]
[390976579,1760256646311,-500.88673706,0.00024141,2]
[390976580,1760256646330,-500.0,0.00024141,2]
[390976581,1760256646341,-500.0,0.00024141,2]
[390976582,1760256646351,-500.0,0.00024141,2]
[390976583,1760256646361,-500.0,0.00024141,2]
[390976584,1760256646370,-500.0,0.00024141,2]
[390976585,1760256646379,-500.0,0.00024141,2]
[390976586,1760256646389,-501.37100416,0.00024141,2]
[390976587,1760256646399,-500.0,0.00024141,2]
[390976588,1760256646408,-500.0,0.00024141,2]
[390976589,1760256646421,-500.0,0.00024141,2]
[390976590,1760256646430,-500.0,0.00024141,2]
[390976591,1760256646439,-544.55,0.00024141,2]
[390976592,1760256646450,-237.81,0.00024141,2]
[390976593,1760256646460,-500.0,0.00024141,2]
[390976594,1760256646470,-500.0,0.00024141,2]
[390976595,1760256646479,-507.52790687,0.00024141,2]
[390976596,1760256646489,-500.0,0.00024141,2]
[390976597,1760256646498,-500.0,0.00024141,2]
[390976598,1760256646507,-500.0,0.00024141,2]
[390976599,1760256646518,-500.0,0.00024141,2]
[390976600,1760256646528,-500.0,0.00024141,2]
[390976601,1760256646537,-500.0,0.00024141,2]
[390976602,1760256646547,-405.53,0.00024141,2]
[390976603,1760256646558,-500.0,0.00024141,2]
[390976604,1760256646568,-500.0,0.00024141,2]
[390976605,1760256646577,-500.0,0.00024141,2]
[390976606,1760256646586,-528.75224397,0.00024141,2]
[390976607,1760256646595,-500.0,0.00024141,2]
[390976608,1760256646606,-500.0,0.00024141,2]
[390976609,1760256646615,-500.59511772,0.00024141,2]
[390976610,1760256646624,-500.0,0.00024141,2]
[390976611,1760256646633,-500.0,0.00024141,2]
[390976612,1760256646644,-500.0,0.00024141,2]
[390976613,1760256646653,-500.0,0.00024141,2]
[390976614,1760256646663,-500.0,0.00024141,2]
[390976615,1760256646674,-500.0,0.00024141,2]
[390976616,1760256646683,-500.0,0.00024141,2]
[390976617,1760256646694,-500.0,0.00024141,2]
[390976618,1760256646703,-500.0,0.00024141,2]
[390976619,1760256646712,-500.0,0.00024141,2]
[390976620,1760256646721,-500.0,0.00024141,2]
[390976621,1760256646730,-407.34,0.00024141,2]
[390976622,1760256646739,-500.0,0.00024141,2]
[390976623,1760256646748,-500.0,0.00024141,2]
[390976624,1760256646757,-582.4,0.00024141,2]
[390976625,1760256646766,-500.0,0.00024141,2]
[390976626,1760256646775,-481.80090067,0.00024141,2]
[390976627,1760256646784,-500.0,0.00024141,2]
[390976628,1760256646793,-567.34,0.00024141,2]
[390976629,1760256646802,-15.88842637,0.00024141,2]
[390976630,1760256646815,-484.11157363,0.00024141,2]
[390976631,1760256646825,-169.69,0.00024141,2]
[390976632,1760256646834,-502.11683885,0.00024141,2]
[390976633,1760256646843,-500.0,0.00024141,2]
[390976634,1760256646852,-275.14,0.00024141,2]
[390976635,1760256646862,-501.32149795,0.00024141,2]
[390976636,1760256646878,-500.0,0.00024141,2]